bitfinex/quotes_BTCUSD_20260127
["timestamp","ask_amount","ask_price","bid_price","bid_amount"]
[1769530116422,0.00999999,88510.0,88498.0,0.11074887]
[1769530116631,0.01128957,88522.0,88499.0,0.11074887]
[1769530116869,0.01128957,88522.0,88481.0,0.13292053]
[1769530116870,0.01128957,88522.0,88482.0,0.08851829]
[1769530116871,0.02710012,88516.0,88482.0,0.08851829]
[1769530117069,0.03734278,88529.0,88482.0,0.08851829]
[1769530117070,0.01128957,88512.0,88482.0,0.00013967]
[1769530117294,0.01128957,88512.0,88482.0,0.02441386]
[1769530117870,0.01128957,88512.0,88483.0,0.02427419]
[1769530118908,0.01128957,88512.0,88491.0,0.02427419]
[1769530120854,0.01128957,88512.0,88494.0,0.02427419]
[1769530121004,0.01128957,88525.0,88493.0,0.02427419]
[1769530121205,0.01128957,88525.0,88491.0,0.64356081]
[1769530121406,0.01128957,88525.0,88492.0,0.02427419]
[1769530121933,0.01806632,88525.0,88492.0,0.02427419]
[1769530122186,0.01128957,88525.0,88494.0,0.05650044]
[1769530122320,0.01128957,88525.0,88495.0,0.02427419]
[1769530122725,0.22590559,88533.0,88489.0,0.0565038]
[1769530122726,0.40022603,88537.0,88489.0,0.0565038]
[1769530122728,0.0004672,88566.0,88532.0,0.02427419]
[1769530122942,0.0004672,88566.0,88528.0,0.79813453]
[1769530122943,0.0004672,88594.0,88552.0,0.02710012]
[1769530122945,0.01129634,88576.0,88552.0,0.02710012]
[1769530123177,0.0004672,88594.0,88590.0,0.14004866]
[1769530123405,0.0004672,88594.0,88590.0,0.11876059]
[1769530123557,0.0004672,88594.0,88593.0,0.08483393]
[1769530123738,0.68385204,88601.0,88596.0,0.03915288]
[1769530124083,0.68431953,88601.0,88596.0,0.02786556]
[1769530124240,0.68431953,88601.0,88596.0,0.01657837]
[1769530124444,0.68431953,88601.0,88596.0,0.00529131]
[1769530124644,0.68431953,88601.0,88512.0,2.31582832]
[1769530124645,0.68431953,88601.0,88561.0,0.64356081]
[1769530124646,0.00599588,88596.0,88561.0,0.64356081]
[1769530124965,0.00599588,88596.0,88562.0,0.02427419]
[1769530125172,0.00599588,88596.0,88543.0,0.45175677]
[1769530125173,0.00599588,88596.0,88571.0,0.02427419]
[1769530125350,0.00046749,88601.0,88575.0,0.02427419]
[1769530125765,0.00046749,88601.0,88582.0,0.05644437]
[1769530126151,0.00046749,88601.0,88577.0,0.22579059]
[1769530126152,0.00046749,88601.0,88581.0,0.08071949]
[1769530126356,0.00046749,88601.0,88535.0,1.21796339]
[1769530126357,0.00046749,88601.0,88580.0,0.33573809]
[1769530126578,0.00046749,88601.0,88585.0,0.02427419]
[1769530128415,0.00046749,88601.0,88577.0,0.64356081]
[1769530128416,0.00599588,88615.0,88601.0,0.00046749]
[1769530128617,0.02712,88641.0,88601.0,0.00060716]
[1769530128618,0.00599588,88627.0,88601.0,0.00060716]
[1769530129070,0.00599588,88627.0,88602.0,0.05643174]
[1769530129242,0.00599588,88627.0,88601.0,0.00060716]
[1769530130072,0.00599588,88627.0,88571.0,0.64356081]
[1769530130073,0.33573809,88620.0,88571.0,0.64356081]
[1769530130278,0.01826603,88631.0,88571.0,0.64356081]
[1769530130279,0.01826603,88631.0,88581.0,0.02427419]
[1769530130280,0.00599588,88616.0,88581.0,0.02427419]
[1769530130646,0.00599588,88616.0,88590.0,0.33573809]
[1769530130871,0.00599588,88616.0,88591.0,0.02427419]
[1769530131874,0.00599588,88616.0,88577.0,0.05644782]
[1769530131875,0.00599588,88616.0,88577.0,0.02427419]
[1769530132301,0.00599588,88616.0,88579.0,0.02427419]
[1769530132513,0.02406191,88616.0,88576.0,0.75956081]
[1769530132729,0.7013194,88615.0,88577.0,0.02427419]
[1769530132948,0.7013194,88615.0,88571.0,0.00046749]
[1769530132949,0.02280649,88614.0,88571.0,0.00046749]
[1769530133177,0.00599588,88616.0,88571.0,0.00046749]
[1769530133178,0.68325337,88611.0,88571.0,0.00046749]
[1769530133390,0.68325337,88611.0,88572.0,0.02427419]
[1769530133608,0.02280649,88612.0,88572.0,0.02427419]
[1769530133609,0.33573809,88590.0,88572.0,0.02427419]
[1769530133825,0.33573809,88590.0,88571.0,0.00046749]
[1769530134268,0.24853803,88601.0,88571.0,0.00046749]
[1769530134269,0.6850709,88595.0,88571.0,0.00046749]
[1769530134502,0.10616815,88594.0,88571.0,0.00046749]
[1769530134719,0.6850709,88595.0,88571.0,0.00046749]
[1769530134935,0.01806603,88599.0,88571.0,0.00046749]
[1769530134936,0.33573809,88590.0,88571.0,0.00046749]
[1769530135168,0.33573809,88590.0,88562.0,0.02712]
[1769530135169,0.33573809,88581.0,88562.0,0.02712]
[1769530135370,0.00046749,88571.0,88562.0,0.02712]
[1769530135704,0.00046749,88571.0,88539.0,0.116]
[1769530136072,0.00599588,88559.0,88539.0,0.116]
[1769530136833,0.00046729,88581.0,88543.0,0.02271764]
[1769530137035,0.07040004,88581.0,88543.0,0.02271764]
[1769530137237,0.07040004,88581.0,88550.0,0.33573809]
[1769530137238,0.00046729,88581.0,88550.0,0.33573809]
[1769530137414,0.00046729,88581.0,88552.0,0.02271764]
[1769530139005,0.33573809,88580.0,88552.0,0.02271764]
[1769530139204,0.39218538,88580.0,88548.0,0.116]
[1769530139419,0.05644615,88580.0,88548.0,0.116]
[1769530139614,0.00046729,88581.0,88550.0,0.02271764]
[1769530140433,0.33573809,88580.0,88550.0,0.1098603]
[1769530140669,0.33573809,88580.0,88532.0,0.67500284]
[1769530140670,0.33573809,88570.0,88539.0,0.13871764]
[1769530140875,0.05645283,88570.0,88539.0,0.13871764]
[1769530141034,0.00599588,88577.0,88539.0,0.17747327]
[1769530141250,0.00599588,88577.0,88540.0,0.69772048]
[1769530141452,0.00599588,88577.0,88548.0,0.67500284]
[1769530142079,0.00567531,88577.0,88548.0,0.73146932]
[1769530142275,0.00535474,88577.0,88549.0,0.05646553]
[1769530142473,0.00535474,88577.0,88540.0,0.58434117]
[1769530142809,0.00535474,88577.0,88549.0,0.02271764]
[1769530143019,0.00535474,88577.0,88551.0,0.67500284]
[1769530143162,0.00046729,88581.0,88552.0,0.02271764]
[1769530143349,0.39218454,88580.0,88552.0,0.02271764]
[1769530143546,0.33573809,88580.0,88552.0,0.02271764]
[1769530144077,0.33573809,88580.0,88538.0,0.02712]
[1769530144078,0.00046749,88552.0,88538.0,0.02271764]
[1769530144458,0.00046749,88552.0,88529.0,0.02712]
[1769530144459,0.00014686,88552.0,88532.0,0.08847275]
[1769530144638,0.00014686,88552.0,88527.0,0.08880975]
[1769530144791,0.33573809,88550.0,88527.0,0.000337]
[1769530144996,0.05646728,88547.0,88527.0,0.000337]
[1769530145218,0.68668951,88548.0,88527.0,0.00047675]
[1769530145447,0.05646033,88558.0,88527.0,0.00047675]
[1769530145632,0.07485046,88558.0,88527.0,0.00047675]
[1769530145810,0.05646054,88558.0,88527.0,0.02319439]
[1769530146014,0.01806603,88563.0,88527.0,0.02319439]
[1769530146214,0.05645762,88562.0,88527.0,0.02319439]
[1769530146412,0.68668951,88560.0,88527.0,0.02319439]
[1769530146632,0.07101103,88559.0,88527.0,0.02319439]
[1769530146885,0.01806603,88563.0,88527.0,0.02319439]
[1769530146886,0.74314904,88560.0,88527.0,0.02319439]
[1769530147054,0.05645673,88564.0,88527.0,0.02319439]
[1769530147286,0.00535474,88565.0,88527.0,0.02319439]
[1769530147492,0.00535474,88565.0,88527.0,0.67547959]
[1769530147688,0.33573809,88560.0,88528.0,0.1324582]
[1769530147871,0.33573809,88560.0,88527.0,0.00047675]
[1769530147872,0.68668951,88558.0,88527.0,0.00047675]
[1769530148479,0.00535474,88565.0,88531.0,0.67500284]
[1769530148678,0.02712,88594.0,88565.0,0.00122302]
[1769530149006,0.01129023,88588.0,88565.0,0.00122302]
[1769530149409,0.05644169,88587.0,88565.0,0.00122302]
[1769530149612,0.0564448,88583.0,88553.0,0.02271764]
[1769530149820,0.00046729,88583.0,88553.0,0.02271764]
[1769530150228,0.00046729,88583.0,88555.0,0.02271764]
[1769530150436,0.00046729,88583.0,88556.0,0.02271764]
[1769530150649,0.00046729,88583.0,88557.0,0.02271764]
[1769530150853,0.00046729,88583.0,88558.0,0.02271764]
[1769530151270,0.00046729,88583.0,88559.0,0.10985559]
[1769530151472,0.00046729,88583.0,88560.0,0.10985559]
[1769530151677,0.00046729,88583.0,88561.0,0.10985559]
[1769530151877,0.00046729,88583.0,88562.0,0.10985559]
[1769530152090,0.00046729,88583.0,88563.0,0.10985559]
[1769530152277,0.00046729,88583.0,88564.0,0.10985559]
[1769530152579,0.00046729,88583.0,88565.0,0.10985559]
[1769530152735,0.00046729,88583.0,88566.0,0.10985559]
[1769530153076,0.00046729,88583.0,88567.0,0.10985559]
[1769530153305,0.00046729,88583.0,88568.0,0.10985559]
[1769530153508,0.00046729,88583.0,88569.0,0.10985559]
[1769530153682,0.00046729,88583.0,88570.0,0.10985559]
[1769530153894,0.00046729,88583.0,88571.0,0.10985559]
[1769530154044,0.05644236,88586.0,88572.0,0.10985559]
[1769530154252,0.33573809,88590.0,88572.0,0.10985559]
[1769530154253,0.05644359,88585.0,88572.0,0.00046729]
[1769530154616,0.05644434,88583.0,88572.0,0.00046729]
[1769530154771,0.01128827,88588.0,88572.0,0.00046729]
[1769530154970,0.00046729,88572.0,88559.0,0.08847275]
[1769530155175,0.00046729,88572.0,88560.0,0.11057002]
[1769530155377,0.00046729,88572.0,88561.0,0.11057002]
[1769530155558,0.00046729,88572.0,88559.0,0.08847275]
[1769530155756,0.00438856,88559.0,88551.0,0.08847275]
[1769530156101,0.00046729,88572.0,88548.0,0.08847275]
[1769530156304,0.00046729,88572.0,88549.0,0.02271764]
[1769530156562,0.00046729,88572.0,88550.0,0.08847275]
[1769530156763,0.00046729,88572.0,88535.0,0.06143255]
[1769530156764,0.00046729,88572.0,88551.0,0.02271764]
[1769530157504,0.00046729,88572.0,88550.0,0.08847275]
[1769530157713,0.00046729,88572.0,88542.0,0.13293258]
[1769530157714,0.00046729,88572.0,88552.0,0.08847275]
[1769530158316,0.33573809,88570.0,88552.0,0.08847275]
[1769530158514,0.33573809,88562.0,88549.0,0.08852799]
[1769530158720,0.05645557,88566.0,88542.0,0.02271764]
[1769530158941,0.00046729,88572.0,88542.0,0.02271764]
[1769530159142,0.33573809,88570.0,88542.0,0.02271764]
[1769530159347,0.05645473,88567.0,88542.0,0.02271764]
[1769530159517,0.05645473,88567.0,88537.0,0.13293258]
[1769530159518,0.01806603,88569.0,88537.0,0.13293258]
[1769530159722,0.0564592,88560.0,88535.0,0.13293258]
[1769530159943,0.01806603,88569.0,88535.0,0.13293258]
[1769530159944,0.05645656,88564.0,88535.0,0.13293258]
[1769530160143,0.05645734,88563.0,88535.0,0.13293258]
[1769530160356,0.05691883,88572.0,88534.0,0.13293258]
[1769530160545,0.00046729,88572.0,88538.0,0.67500284]
[1769530160744,0.00046729,88572.0,88542.0,0.02271764]
[1769530161043,0.00046729,88572.0,88544.0,0.67500284]
[1769530161205,0.00046729,88572.0,88548.0,0.02271764]
[1769530161403,0.00046729,88572.0,88549.0,0.05646553]
[1769530161626,0.01128827,88592.0,88542.0,0.67500284]
[1769530161825,0.33573809,88590.0,88547.0,0.02271764]
[1769530162047,0.33573809,88590.0,88549.0,0.05646567]
[1769530162048,0.05644133,88588.0,88549.0,0.05646567]
[1769530162251,0.05644133,88588.0,88550.0,0.02271764]
[1769530162449,0.01806603,88586.0,88551.0,0.02341788]
[1769530162654,0.05644601,88581.0,88551.0,0.02341788]
[1769530163211,0.05644836,88577.0,88551.0,0.02341788]
[1769530163428,0.33573809,88580.0,88551.0,0.02341788]
[1769530163585,0.33573809,88580.0,88547.0,0.116]
[1769530163787,0.01806603,88586.0,88542.0,0.13293258]
[1769530163788,0.33573809,88570.0,88542.0,0.13293258]
[1769530164104,0.05645365,88569.0,88541.0,0.15635046]
[1769530164313,0.39219068,88570.0,88541.0,0.02341788]
[1769530164314,0.33573809,88570.0,88541.0,0.02341788]
[1769530164475,0.33573809,88570.0,88544.0,0.13293258]
[1769530164677,0.05645729,88563.0,88541.0,0.15635046]
[1769530165057,0.05645548,88566.0,88542.0,0.13293258]
[1769530165177,0.33573809,88570.0,88542.0,0.13293258]
[1769530165382,0.05645474,88567.0,88542.0,0.13293258]
[1769530165655,0.01806603,88572.0,88538.0,0.02712]
[1769530165656,0.33573809,88560.0,88543.0,0.13293258]
[1769530165902,0.05645989,88559.0,88543.0,0.00046729]
[1769530166136,0.39219732,88560.0,88543.0,0.00046729]
[1769530166137,0.33573809,88560.0,88543.0,0.00046729]
[1769530166353,0.05645846,88561.0,88543.0,0.00046729]
[1769530166566,0.05645903,88560.0,88543.0,0.00046729]
[1769530166774,0.05645793,88562.0,88543.0,0.00046729]
[1769530166775,0.05645856,88561.0,88543.0,0.00046729]
[1769530167042,0.05645898,88560.0,88543.0,0.00046729]
[1769530167241,0.05645853,88561.0,88543.0,0.00046729]
[1769530167451,0.22582655,88564.0,88543.0,0.00046729]
[1769530167589,0.05645928,88560.0,88543.0,0.00046729]
[1769530167785,0.05645698,88563.0,88543.0,0.00046729]
[1769530167999,0.01703076,88565.0,88543.0,0.00046729]
[1769530168199,0.05646036,88558.0,88543.0,0.00046729]
[1769530168417,0.05646001,88559.0,88543.0,0.00046729]
[1769530168629,0.01703076,88565.0,88543.0,0.00046729]
[1769530168847,0.05646051,88558.0,88543.0,0.00046729]
[1769530169064,0.00438856,88538.0,88505.0,0.22213109]
[1769530169280,0.0564796,88528.0,88505.0,0.00013975]
[1769530169663,0.05647959,88528.0,88505.0,0.00013975]
[1769530169865,0.02479897,88538.0,88505.0,0.00013975]
[1769530170056,0.02479897,88538.0,88506.0,0.02342907]
[1769530170251,0.02479897,88538.0,88508.0,0.02342907]
[1769530170617,0.05647514,88535.0,88508.0,0.02342907]
[1769530170843,0.02479897,88538.0,88508.0,0.02342907]
[1769530171037,0.0564743,88536.0,88508.0,0.02342907]
[1769530171396,0.02479897,88538.0,88508.0,0.02342907]
[1769530171569,0.05647491,88535.0,88508.0,0.02342907]
[1769530171770,0.05647702,88532.0,88508.0,0.02342907]
[1769530171978,0.05647785,88531.0,88505.0,0.00013975]
[1769530172179,0.05647697,88532.0,88505.0,0.00013975]
[1769530172581,0.66286465,88537.0,88505.0,0.00013975]
[1769530172782,0.33573809,88520.0,88505.0,0.00013975]
[1769530172962,0.02479897,88529.0,88505.0,0.00013975]
[1769530173587,0.042865,88529.0,88505.0,0.00013975]
[1769530173788,0.01128827,88531.0,88505.0,0.00013975]
[1769530173991,0.01128827,88531.0,88508.0,0.66094731]
[1769530174331,0.01128827,88531.0,88509.0,0.02342907]
[1769530174464,0.01128827,88531.0,88510.0,0.33573809]
[1769530174666,0.01128827,88540.0,88511.0,0.68437638]
[1769530175954,0.10445833,88540.0,88511.0,0.68437638]
[1769530176198,0.10445833,88540.0,88511.0,0.02342907]
[1769530176379,0.05647228,88539.0,88505.0,0.00013975]
[1769530176576,0.09255934,88540.0,88506.0,0.66094731]
[1769530176792,0.03608724,88540.0,88506.0,0.66094731]
[1769530176992,0.03608724,88540.0,88507.0,0.02342907]
[1769530177273,0.03608724,88540.0,88505.0,0.00013975]
[1769530177274,0.01128827,88553.0,88522.0,0.02342907]
[1769530177532,0.02853175,88553.0,88524.0,0.68437638]
[1769530177891,0.05646434,88552.0,88524.0,0.68437638]
[1769530178107,0.05646493,88551.0,88524.0,0.68437638]
[1769530178532,0.02853175,88553.0,88524.0,0.68437638]
[1769530178748,0.67510696,88552.0,88524.0,0.02342907]
[1769530178909,0.67510696,88552.0,88511.0,0.11604]
[1769530178910,0.02479897,88548.0,88511.0,0.11604]
[1769530179115,0.0564702,88543.0,88511.0,0.11604]
[1769530179311,0.63568219,88540.0,88510.0,0.02342907]
[1769530179514,0.05647384,88537.0,88510.0,0.02342907]
[1769530180020,0.63568219,88540.0,88510.0,0.02342907]
[1769530180239,0.05647373,88537.0,88510.0,0.02342907]
[1769530180456,0.05647199,88540.0,88507.0,0.11604]
[1769530180698,0.07974967,88539.0,88507.0,0.11604]
[1769530180951,0.07974967,88539.0,88508.0,0.68437638]
[1769530181158,0.05647292,88538.0,88508.0,0.68437638]
[1769530181266,0.07974967,88539.0,88508.0,0.68437638]
[1769530181473,0.02479897,88540.0,88509.0,0.05649085]
[1769530181723,0.22585944,88551.0,88508.0,0.02342907]
[1769530181724,0.05646506,88551.0,88515.0,0.02342907]
[1769530181933,0.02479897,88552.0,88517.0,0.0564859]
[1769530182229,0.02479897,88552.0,88518.0,0.02342907]
[1769530182436,0.63568219,88551.0,88518.0,0.02342907]
[1769530182609,0.63568219,88551.0,88518.0,0.68437638]
[1769530182610,0.6921472,88551.0,88518.0,0.68437638]
[1769530182810,0.05646551,88550.0,88518.0,0.68437638]
[1769530183016,0.63568219,88551.0,88518.0,0.68437638]
[1769530183215,0.35351957,88550.0,88518.0,0.68437638]
[1769530183558,0.05647314,88538.0,88507.0,0.68437638]
[1769530183866,0.33545354,88530.0,88505.0,0.00013975]
[1769530184134,0.63568219,88529.0,88505.0,0.00013975]
[1769530184380,0.05648163,88525.0,88505.0,0.00013975]
[1769530184509,0.01128827,88526.0,88505.0,0.00013975]
[1769530184510,0.15754681,88524.0,88505.0,0.00013975]
[1769530184711,0.02479897,88525.0,88491.0,0.06136983]
[1769530184913,0.05648209,88524.0,88491.0,0.00013979]
[1769530185161,0.02479897,88523.0,88491.0,0.00013979]
[1769530185498,0.05648382,88521.0,88491.0,0.00013979]
[1769530185698,0.02479897,88523.0,88491.0,0.00013979]
[1769530185925,0.69202858,88520.0,88491.0,0.00013979]
[1769530186130,0.07281158,88519.0,88491.0,0.00075959]
[1769530186332,0.07281158,88519.0,88491.0,0.00065959]
[1769530186600,0.02479897,88523.0,88491.0,0.00065959]
[1769530186738,0.02479897,88523.0,88491.0,0.6616069]
[1769530186925,0.63554384,88522.0,88491.0,0.00065959]
[1769530187134,0.02479897,88523.0,88491.0,0.6616069]
[1769530187772,0.02479897,88523.0,88492.0,0.02342907]
[1769530188163,0.02479897,88523.0,88492.0,0.02404887]
[1769530188368,0.08887232,88523.0,88492.0,0.02404887]
[1769530188772,0.05648409,88521.0,88492.0,0.02404887]
[1769530188950,0.08887232,88523.0,88492.0,0.02404887]
[1769530189455,0.08887232,88523.0,88492.0,0.68499618]
[1769530189697,0.01128827,88526.0,88493.0,0.02342907]
[1769530189865,0.02479897,88524.0,88492.0,0.0006198]
[1769530190081,0.02479897,88524.0,88494.0,0.68437638]
[1769530190262,0.63554384,88521.0,88494.0,0.02342907]
[1769530190888,0.69202761,88521.0,88494.0,0.02342907]
[1769530191129,0.63554384,88521.0,88494.0,0.02342907]
[1769530191331,0.0564853,88519.0,88494.0,0.02404887]
[1769530191534,0.05648582,88518.0,88494.0,0.02404887]
[1769530191919,0.63554384,88521.0,88494.0,0.02404887]
[1769530192278,0.0564847,88520.0,88494.0,0.02404887]
[1769530192500,0.70835531,88521.0,88494.0,0.02404887]
[1769530192683,0.63554384,88521.0,88494.0,0.68499618]
[1769530192883,0.66034281,88531.0,88496.0,0.02342907]
[1769530193071,0.01128827,88536.0,88521.0,0.00514414]
[1769530193231,0.05647724,88532.0,88521.0,0.00535594]
[1769530193438,0.6918114,88532.0,88509.0,0.02342907]
[1769530193641,0.63533416,88532.0,88509.0,0.02342907]
[1769530193962,0.05647739,88531.0,88509.0,0.02342907]
[1769530194161,0.05647818,88530.0,88509.0,0.02342907]
[1769530194370,0.05647961,88528.0,88509.0,0.02356892]
[1769530194763,0.63533416,88529.0,88509.0,0.00013985]
[1769530194959,0.63533416,88524.0,88509.0,0.00013985]
[1769530195159,0.86126669,88523.0,88509.0,0.00013985]
[1769530195470,0.05648249,88523.0,88501.0,0.000408]
[1769530195696,0.05648787,88515.0,88501.0,0.00054795]
[1769530195834,0.63533416,88518.0,88501.0,0.00054795]
[1769530196200,0.63437044,88518.0,88501.0,0.00054795]
[1769530196543,0.69085633,88518.0,88501.0,0.00054795]
[1769530196882,0.05648695,88517.0,88501.0,0.00054795]
[1769530197069,0.69085622,88518.0,88501.0,0.00054795]
[1769530197321,0.05648569,88518.0,88501.0,0.00054795]
[1769530197482,0.0564873,88516.0,88501.0,0.00054795]
[1769530197679,0.63533416,88521.0,88501.0,0.00054795]
[1769530197875,0.05648619,88518.0,88501.0,0.00044795]
[1769530198102,0.63533416,88521.0,88501.0,0.00044795]
[1769530198261,0.01130142,88526.0,88501.0,0.02330298]
[1769530198685,0.01130142,88526.0,88503.0,0.64174917]
[1769530199019,0.64663558,88526.0,88504.0,0.02285503]
[1769530199250,0.01130142,88526.0,88501.0,0.00044795]
[1769530199452,0.69181828,88521.0,88501.0,0.00044795]
[1769530199569,0.63533416,88525.0,88501.0,0.00044795]
[1769530199783,0.63533416,88524.0,88501.0,0.00044795]
[1769530199987,0.86126194,88524.0,88501.0,0.00044795]
[1769530200298,0.22592998,88524.0,88501.0,0.00044795]
[1769530200666,0.22592998,88524.0,88483.0,0.06130077]
[1769530200667,0.00440791,88494.0,88483.0,0.0004]
[1769530200944,0.01130142,88526.0,88483.0,0.0004]
[1769530200945,0.024128,88524.0,88494.0,0.02285503]
[1769530201144,0.024128,88524.0,88496.0,0.6646042]
[1769530201304,0.08061013,88524.0,88496.0,0.6646042]
[1769530201504,0.024128,88540.0,88524.0,0.01]
[1769530201709,0.01130142,88543.0,88524.0,0.01]
[1769530201913,0.01130142,88543.0,88513.0,0.02285503]
[1769530202104,0.03542942,88543.0,88513.0,0.02285503]
[1769530202305,0.01130142,88543.0,88515.0,0.02285503]
[1769530202517,0.01130142,88543.0,88518.0,0.64174917]
[1769530202714,0.01130142,88543.0,88518.0,0.64188915]
[1769530202946,0.0028521,88556.0,88531.0,0.64174917]
[1769530203145,0.0028521,88556.0,88533.0,0.64174917]
[1769530203387,0.67593725,88577.0,88535.0,0.64174917]
[1769530203388,0.0028521,88566.0,88535.0,0.64174917]
[1769530203591,0.0028521,88566.0,88536.0,0.02285503]
[1769530203976,0.0028521,88566.0,88536.0,0.6646042]
[1769530204554,0.0028521,88566.0,88536.0,0.72107813]
[1769530204742,0.0028521,88566.0,88536.0,0.6646042]
[1769530206006,0.0028521,88566.0,88537.0,0.11608]
[1769530206315,0.0028521,88566.0,88538.0,0.11608]
[1769530206887,0.0028521,88566.0,88539.0,0.64174917]
[1769530207870,0.0028521,88566.0,88540.0,0.64174917]
[1769530208476,0.0028521,88566.0,88538.0,0.13893503]
[1769530209086,0.0028521,88566.0,88538.0,0.7806842]
[1769530209289,0.67593725,88565.0,88538.0,0.13893503]
[1769530209920,0.67593725,88565.0,88538.0,0.02285503]
[1769530210059,0.0269801,88566.0,88539.0,0.75778917]
[1769530210252,0.005408,88562.0,88539.0,0.75778917]
[1769530210590,0.000408,88587.0,88539.0,0.64174917]
[1769530210809,0.01128899,88569.0,88540.0,0.11604]
[1769530211201,0.05645414,88568.0,88540.0,0.11604]
[1769530211375,0.06774244,88569.0,88540.0,0.11604]
[1769530211577,0.01128899,88569.0,88540.0,0.11604]
[1769530211968,0.01128899,88569.0,88540.0,0.02285503]
[1769530212378,0.02935502,88569.0,88539.0,0.11604]
[1769530212578,0.02935502,88569.0,88536.0,0.11604]
[1769530212783,0.05645821,88562.0,88536.0,0.11604]
[1769530213001,0.024128,88562.0,88536.0,0.11604]
[1769530213224,0.024128,88562.0,88533.0,0.11604]
[1769530213802,0.024128,88562.0,88531.0,0.02285503]
[1769530214005,0.01,88531.0,88512.0,0.06182766]
[1769530214205,0.01,88531.0,88508.0,0.75778917]
[1769530214206,0.67593725,88530.0,88508.0,0.11604]
[1769530214382,0.01,88531.0,88508.0,0.11604]
[1769530214383,0.024128,88529.0,88508.0,0.11604]
[1769530214596,0.05647911,88529.0,88501.0,0.000408]
[1769530214790,0.024128,88528.0,88501.0,0.000408]
[1769530214998,0.00014015,88529.0,88501.0,0.000408]
[1769530214999,0.22592134,88527.0,88501.0,0.000408]
[1769530215240,0.024128,88521.0,88501.0,0.000408]
[1769530216421,0.024128,88525.0,88501.0,0.000408]
[1769530216758,0.024128,88524.0,88501.0,0.000408]
[1769530216913,0.024128,88522.0,88501.0,0.000408]
[1769530217126,0.02935502,88526.0,88501.0,0.000408]
[1769530217336,0.024128,88518.0,88501.0,0.000408]
[1769530217720,0.0564867,88517.0,88501.0,0.000408]
[1769530217921,0.02935502,88526.0,88483.0,0.0004]
[1769530217922,0.024128,88512.0,88483.0,0.0004]
[1769530218353,0.05648338,88522.0,88490.0,0.97720271]
[1769530218557,0.08061219,88521.0,88490.0,0.64174917]
[1769530218763,0.01128899,88526.0,88486.0,0.02285503]
[1769530218764,0.05648732,88516.0,88486.0,0.02285503]
[1769530219001,0.024128,88519.0,88486.0,0.02285503]
[1769530219142,0.01806603,88520.0,88483.0,0.0004]
[1769530219347,0.024128,88514.0,88483.0,0.0004]
[1769530219572,0.01806603,88520.0,88483.0,0.0004]
[1769530219796,0.024128,88510.0,88483.0,0.0004]
[1769530220777,0.024128,88539.0,88510.0,0.05649041]
[1769530220994,0.01130276,88540.0,88502.0,0.11604]
[1769530221185,0.02712,88549.0,88521.0,0.02285503]
[1769530221478,0.02712,88549.0,88525.0,0.64174917]
[1769530222056,0.02712,88549.0,88529.0,0.64174917]
[1769530222256,2.564e-05,88547.0,88529.0,0.64174917]
[1769530222463,2.564e-05,88547.0,88530.0,0.5613631]
[1769530222678,2.564e-05,88547.0,88530.0,0.33545354]
[1769530222884,2.564e-05,88547.0,88538.0,0.05647253]
[1769530223084,0.01130276,88569.0,88538.0,0.05647253]
[1769530223085,0.01130276,88569.0,88538.0,0.2258917]
[1769530223284,0.01176952,88569.0,88550.0,0.33545354]
[1769530223466,0.0004907,88577.0,88559.0,0.33545354]
[1769530223686,0.02712,88591.0,88565.0,0.05645524]
[1769530223887,0.02712,88591.0,88568.0,0.05645335]
[1769530224089,0.02712,88591.0,88566.0,0.69161449]
[1769530224913,0.02712,88591.0,88565.0,0.22596189]
[1769530224914,0.01130276,88596.0,88576.0,0.05644852]
[1769530225124,0.0500107,88606.0,88565.0,0.00013991]
[1769530225125,0.0004907,88606.0,88567.0,0.11604]
[1769530225322,0.0004907,88636.0,88601.0,0.05643219]
[1769530225499,0.0004907,88636.0,88611.0,0.69393127]
[1769530225690,0.0004907,88636.0,88613.0,0.69393127]
[1769530225897,0.0004907,88636.0,88615.0,0.69393127]
[1769530226096,0.01127056,88649.0,88630.0,0.69393127]
[1769530226307,0.01127056,88666.0,88631.0,0.02479058]
[1769530226512,0.22384851,88715.0,88628.0,0.11604]
[1769530226513,0.03611432,88686.0,88639.0,0.33545354]
[1769530226835,0.03611432,88686.0,88629.0,0.7655573]
[1769530226836,0.03611432,88668.0,88629.0,0.7655573]
[1769530227041,0.03611432,88668.0,88632.0,0.02479058]
[1769530227240,0.01,88632.0,88620.0,0.33545354]
[1769530227497,0.01127369,88661.0,88618.0,0.02479058]
[1769530227812,0.01127369,88661.0,88605.0,0.03611432]
[1769530227813,0.01127369,88661.0,88623.0,0.05641876]
[1769530227958,0.01127369,88661.0,88620.0,0.33545354]
[1769530227959,0.01127369,88661.0,88624.0,0.75034928]
[1769530228156,0.01127369,88661.0,88626.0,0.05641661]
[1769530228389,0.01127369,88661.0,88627.0,0.02479058]
[1769530228579,0.01141357,88661.0,88628.0,0.02479058]
[1769530228783,0.01141357,88661.0,88628.0,0.69393127]
[1769530228960,0.01141357,88661.0,88615.0,0.06182961]
[1769530228961,0.00013988,88661.0,88633.0,0.05641182]
[1769530229158,0.00013988,88661.0,88632.0,0.02479058]
[1769530229362,0.37156786,88660.0,88611.0,0.69393127]
[1769530229562,0.03611432,88659.0,88620.0,0.33545354]
[1769530229779,0.03611432,88659.0,88623.0,0.05641833]
[1769530230025,0.69708051,88657.0,88621.0,0.05641992]
[1769530230228,0.00013988,88661.0,88621.0,0.69393127]
[1769530230556,0.00013988,88661.0,88611.0,0.06078381]
[1769530230557,0.02310575,88698.0,88642.0,0.03611432]
[1769530230671,0.00113972,88689.0,88664.0,0.69393127]
[1769530230871,0.00113972,88689.0,88663.0,0.00986012]
[1769530231086,0.00673223,88700.0,88663.0,0.70379139]
[1769530231313,0.01127403,88699.0,88663.0,0.00999984]
[1769530231758,0.01127403,88699.0,88665.0,0.02479058]
[1769530232222,0.01127403,88699.0,88665.0,0.69393127]
[1769530232453,0.01127403,88699.0,88667.0,0.02479058]
[1769530232645,0.01127403,88699.0,88663.0,0.00013972]
[1769530232646,0.01871138,88699.0,88663.0,0.00013972]
[1769530232867,0.01127403,88699.0,88663.0,0.05653298]
[1769530233242,0.01127403,88699.0,88663.0,0.00013972]
[1769530233378,0.0563826,88680.0,88663.0,0.00013972]
[1769530233599,0.056383,88680.0,88645.0,0.02479058]
[1769530233859,0.01127403,88686.0,88646.0,0.69393127]
[1769530234063,0.01127403,88686.0,88645.0,0.00046668]
[1769530234064,0.13400535,88685.0,88649.0,0.69393127]
[1769530234236,0.11596,88685.0,88650.0,0.02479058]
[1769530234441,0.09028,88684.0,88650.0,0.02479058]
[1769530234681,0.1174,88684.0,88650.0,0.02479058]
[1769530234914,0.05638059,88683.0,88650.0,0.02479058]
[1769530235084,0.1174,88684.0,88650.0,0.02479058]
[1769530235311,0.01804535,88680.0,88650.0,0.02479058]
[1769530235611,0.01804535,88680.0,88645.0,0.00046668]
[1769530235746,0.1174,88684.0,88645.0,0.00046668]
[1769530235948,0.14308,88683.0,88645.0,0.02525726]
[1769530236348,0.01804535,88680.0,88645.0,0.02525726]
[1769530236551,0.14308,88683.0,88646.0,0.056404]